[Event "Titled Tuesday Blitz November 14 Late 2023"]
[White "Erdogan, Anil Berk"]
[Black "Karacsonyi, Gellert"]
[WhiteFideId "6348173"]
[BlackFideId "764620"]
[WhiteElo "2529"]
[BlackElo "2762"]
[Result "1-0"]
[Round "5"]
[TimeControl "180+1"]
[Date "2023.11.14"]
[WhiteClock "0:00:09"]
[BlackClock "0:00:07"]
[Board "36"]

1. e4 {[%clk 0:03:00]}  c5 {[%clk 0:02:59]} 2. Nf3 {[%clk 0:03:00]}  Nc6 {[%clk 0:03:00]} 3. d4 {[%clk 0:03:00]}  cxd4 {[%clk 0:03:01]} 4. Nxd4 {[%clk 0:03:01]}  g6 {[%clk 0:03:02]} 5. c4 {[%clk 0:02:59]}  Nf6 {[%clk 0:03:02]} 6. Nc3 {[%clk 0:02:59]}  d6 {[%clk 0:03:03]} 7. Be2 {[%clk 0:02:59]}  Nxd4 {[%clk 0:03:03]} 8. Qxd4 {[%clk 0:02:59]}  Bg7 {[%clk 0:03:04]} 9. Be3 {[%clk 0:02:59]}  O-O {[%clk 0:03:05]} 10. Qd2 {[%clk 0:02:59]}  a5 {[%clk 0:03:06]} 11. O-O {[%clk 0:02:55]}  a4 {[%clk 0:03:06]} 12. f3 {[%clk 0:02:49]}  Qa5 {[%clk 0:03:07]} 13. Rfd1 {[%clk 0:02:44]}  Be6 {[%clk 0:03:07]} 14. Nd5 {[%clk 0:02:45]}  Nxd5 {[%clk 0:03:07]} 15. cxd5 {[%clk 0:02:44]}  Qxd2 {[%clk 0:03:07]} 16. Rxd2 {[%clk 0:02:39]}  Bd7 {[%clk 0:03:07]} 17. Bd4 {[%clk 0:02:37]}  Bxd4+ {[%clk 0:02:47]} 18. Rxd4 {[%clk 0:02:38]}  Rfc8 {[%clk 0:02:48]} 19. Rc4 {[%clk 0:02:20]}  Rxc4 {[%clk 0:02:46]} 20. Bxc4 {[%clk 0:02:21]}  Rc8 {[%clk 0:02:46]} 21. b3 {[%clk 0:02:19]}  b5 {[%clk 0:02:43]} 22. Bf1 {[%clk 0:02:16]}  a3 {[%clk 0:02:29]} 23. Bd3 {[%clk 0:02:12]}  f5 {[%clk 0:02:23]} 24. Kf2 {[%clk 0:02:11]}  Kf7 {[%clk 0:02:21]} 25. Ke3 {[%clk 0:02:03]}  Kf6 {[%clk 0:02:20]} 26. Kd4 {[%clk 0:02:01]}  h6 {[%clk 0:02:12]} 27. b4 {[%clk 0:01:50]}  g5 {[%clk 0:01:55]} 28. Rb1 {[%clk 0:01:48]}  e5+ {[%clk 0:01:42]} 29. dxe6 {[%clk 0:01:46]}  Bxe6 {[%clk 0:01:42]} 30. exf5 {[%clk 0:01:35]}  Bxa2 {[%clk 0:01:39]} 31. Ra1 {[%clk 0:01:34]}  Bc4 {[%clk 0:01:40]} 32. Rxa3 {[%clk 0:01:26]}  Bxd3 {[%clk 0:01:40]} 33. Kxd3 {[%clk 0:01:15]}  Rc4 {[%clk 0:01:41]} 34. Ra6 {[%clk 0:01:11]}  Rxb4 {[%clk 0:01:19]} 35. Rxd6+ {[%clk 0:01:08]}  Kxf5 {[%clk 0:01:20]} 36. g4+ {[%clk 0:00:48]}  Kf4 {[%clk 0:01:06]} 37. Rf6+ {[%clk 0:00:47]}  Ke5 {[%clk 0:01:07]} 38. Rxh6 {[%clk 0:00:47]}  Rb3+ {[%clk 0:01:07]} 39. Ke2 {[%clk 0:00:46]}  Rb2+ {[%clk 0:01:02]} 40. Ke3 {[%clk 0:00:45]}  Rb3+ {[%clk 0:01:03]} 41. Kf2 {[%clk 0:00:46]}  Kd4 {[%clk 0:00:19]} 42. Rg6 {[%clk 0:00:42]}  b4 {[%clk 0:00:18]} 43. Rxg5 {[%clk 0:00:41]}  Rb1 {[%clk 0:00:19]} 44. Rb5 {[%clk 0:00:36]}  b3 {[%clk 0:00:20]} 45. h4 {[%clk 0:00:34]}  b2 {[%clk 0:00:20]} 46. Kg2 {[%clk 0:00:29]}  Kc3 {[%clk 0:00:20]} 47. h5 {[%clk 0:00:27]}  Re1 {[%clk 0:00:21]} 48. h6 {[%clk 0:00:17]}  Re6 {[%clk 0:00:11]} 49. g5 {[%clk 0:00:15]}  Re5 {[%clk 0:00:11]} 50. Rxe5 {[%clk 0:00:06]}  b1=Q {[%clk 0:00:12]} 51. f4 {[%clk 0:00:04]}  Kd4 {[%clk 0:00:08]} 52. Kf3 {[%clk 0:00:04]}  Qh1+ {[%clk 0:00:08]} 53. Kg4 {[%clk 0:00:04]}  Qd1+ {[%clk 0:00:08]} 54. Kf5 {[%clk 0:00:04]}  Qh5 {[%clk 0:00:08]} 55. Kf6 {[%clk 0:00:03]}  Qf3 {[%clk 0:00:05]} 56. Rf5 {[%clk 0:00:02]}  Qc6+ {[%clk 0:00:05]} 57. Kg7 {[%clk 0:00:02]}  Qd7+ {[%clk 0:00:05]} 58. Rf7 {[%clk 0:00:03]}  Qg4 {[%clk 0:00:02]} 59. h7 {[%clk 0:00:04]}  Ke3 {[%clk 0:00:02]} 60. h8=Q {[%clk 0:00:04]}  Kf3 {[%clk 0:00:03]} 61. Qf8 {[%clk 0:00:05]}  Kg3 {[%clk 0:00:03]} 62. g6 {[%clk 0:00:05]}  Qf3 {[%clk 0:00:04]} 63. f5 {[%clk 0:00:06]}  Qc3+ {[%clk 0:00:05]} 64. f6 {[%clk 0:00:07]}  Qf3 {[%clk 0:00:05]} 65. Qh8 {[%clk 0:00:08]}  Qg4 {[%clk 0:00:06]} 66. Qh6 {[%clk 0:00:08]}  Qc8 {[%clk 0:00:05]} 67. Re7 {[%clk 0:00:09]}  Qd8 {[%clk 0:00:05]} 68. Qe3+ {[%clk 0:00:09]}  Kg4 {[%clk 0:00:06]} 69. Re4+ {[%clk 0:00:10]}  Kh5 {[%clk 0:00:06]} 70. Qh3+ {[%clk 0:00:09]}  Kg5 {[%clk 0:00:07]} 71. Qg4# {[%clk 0:00:09]} 1-0


[Site "https://www.chess.com"]

[Event "Titled Tuesday Blitz November 14 Late 2023"]
[White "Djordjevic, Vuk"]
[Black "Sztokbant, Bernardo Vainzoff"]
[WhiteFideId "902098"]
[BlackFideId "2115956"]
[WhiteElo "2755"]
[BlackElo "2507"]
[Result "1-0"]
[Round "5"]
[TimeControl "180+1"]
[Date "2023.11.14"]
[WhiteClock "0:00:14"]
[BlackClock "0:00:15"]
[Board "37"]

1. d4 {[%clk 0:03:00]}  d5 {[%clk 0:02:08]} 2. Bf4 {[%clk 0:02:07]}  c5 {[%clk 0:02:07]} 3. e3 {[%clk 0:02:07]}  Nc6 {[%clk 0:02:07]} 4. c3 {[%clk 0:02:06]}  Bf5 {[%clk 0:02:06]} 5. Nd2 {[%clk 0:02:06]}  e6 {[%clk 0:02:05]} 6. Ngf3 {[%clk 0:01:54]}  Qb6 {[%clk 0:02:04]} 7. Nh4 {[%clk 0:01:48]}  Bg6 {[%clk 0:01:51]} 8. Nxg6 {[%clk 0:01:47]}  hxg6 {[%clk 0:01:52]} 9. Qb3 {[%clk 0:01:43]}  c4 {[%clk 0:01:52]} 10. Qc2 {[%clk 0:01:43]}  Nf6 {[%clk 0:01:38]} 11. e4 {[%clk 0:01:37]}  Be7 {[%clk 0:01:36]} 12. Be2 {[%clk 0:01:30]}  O-O {[%clk 0:01:25]} 13. O-O {[%clk 0:01:27]}  Rac8 {[%clk 0:01:12]} 14. Rae1 {[%clk 0:01:11]}  Nxe4 {[%clk 0:01:03]} 15. Nxe4 {[%clk 0:01:09]}  dxe4 {[%clk 0:01:04]} 16. Bxc4 {[%clk 0:00:40]}  Nxd4 {[%clk 0:00:55]} 17. cxd4 {[%clk 0:00:39]}  Qxd4 {[%clk 0:00:56]} 18. Rxe4 {[%clk 0:00:39]}  Qc5 {[%clk 0:00:47]} 19. Qe2 {[%clk 0:00:36]}  Bf6 {[%clk 0:00:46]} 20. Be3 {[%clk 0:00:30]}  Qa5 {[%clk 0:00:44]} 21. b3 {[%clk 0:00:27]}  a6 {[%clk 0:00:42]} 22. a4 {[%clk 0:00:27]}  Rfd8 {[%clk 0:00:41]} 23. h3 {[%clk 0:00:21]}  Qf5 {[%clk 0:00:40]} 24. Rf4 {[%clk 0:00:21]}  Qe5 {[%clk 0:00:38]} 25. Qf3 {[%clk 0:00:20]}  b5 {[%clk 0:00:38]} 26. axb5 {[%clk 0:00:20]}  axb5 {[%clk 0:00:39]} 27. Be2 {[%clk 0:00:20]}  Rc2 {[%clk 0:00:38]} 28. Re4 {[%clk 0:00:19]}  Qb2 {[%clk 0:00:32]} 29. Bxb5 {[%clk 0:00:15]}  Qxb3 {[%clk 0:00:31]} 30. Ba4 {[%clk 0:00:16]}  Qb2 {[%clk 0:00:27]} 31. Bxc2 {[%clk 0:00:15]}  Qxc2 {[%clk 0:00:28]} 32. Rf4 {[%clk 0:00:16]}  g5 {[%clk 0:00:20]} 33. Rxf6 {[%clk 0:00:14]}  gxf6 {[%clk 0:00:21]} 34. Qxf6 {[%clk 0:00:15]}  Rd5 {[%clk 0:00:20]} 35. Bxg5 {[%clk 0:00:15]}  Kh7 {[%clk 0:00:15]} 36. Qxf7+ {[%clk 0:00:14]} 1-0


[Site "https://www.chess.com"]

[Event "Titled Tuesday Blitz November 14 Late 2023"]
[White "Schnaider, Ilan"]
[Black "Kubicka, Anna"]
[WhiteFideId "169013"]
[BlackFideId "1152254"]
[WhiteElo "2738"]
[BlackElo "2469"]
[Result "0-1"]
[Round "5"]
[TimeControl "180+1"]
[Date "2023.11.14"]
[WhiteClock "0:00:09"]
[BlackClock "0:00:14"]
[Board "38"]

1. e4 {[%clk 0:03:00]}  c5 {[%clk 0:02:59]} 2. Nf3 {[%clk 0:03:01]}  d6 {[%clk 0:02:59]} 3. Bb5+ {[%clk 0:02:59]}  Nd7 {[%clk 0:02:59]} 4. a4 {[%clk 0:02:59]}  g6 {[%clk 0:02:57]} 5. Nc3 {[%clk 0:02:59]}  Bg7 {[%clk 0:02:57]} 6. a5 {[%clk 0:02:59]}  Nf6 {[%clk 0:02:52]} 7. a6 {[%clk 0:02:54]}  O-O {[%clk 0:02:50]} 8. O-O {[%clk 0:02:51]}  Nb8 {[%clk 0:02:36]} 9. axb7 {[%clk 0:02:34]}  Bxb7 {[%clk 0:02:37]} 10. Re1 {[%clk 0:02:35]}  Nc6 {[%clk 0:02:30]} 11. Bxc6 {[%clk 0:02:20]}  Bxc6 {[%clk 0:02:29]} 12. d4 {[%clk 0:02:21]}  cxd4 {[%clk 0:02:26]} 13. Nxd4 {[%clk 0:02:22]}  Bb7 {[%clk 0:02:22]} 14. Bg5 {[%clk 0:02:19]}  Qb6 {[%clk 0:02:07]} 15. Ra3 {[%clk 0:01:59]}  a6 {[%clk 0:01:26]} 16. Rb3 {[%clk 0:01:57]}  Qa7 {[%clk 0:01:26]} 17. h3 {[%clk 0:01:51]}  Rab8 {[%clk 0:01:09]} 18. Be3 {[%clk 0:01:12]}  Qa8 {[%clk 0:01:06]} 19. f3 {[%clk 0:01:13]}  Nd7 {[%clk 0:00:46]} 20. Nde2 {[%clk 0:01:08]}  Bc6 {[%clk 0:00:42]} 21. Bd4 {[%clk 0:01:05]}  Rxb3 {[%clk 0:00:41]} 22. cxb3 {[%clk 0:01:06]}  Qb7 {[%clk 0:00:34]} 23. Kh1 {[%clk 0:00:57]}  Nc5 {[%clk 0:00:29]} 24. Bxg7 {[%clk 0:00:53]}  Kxg7 {[%clk 0:00:30]} 25. Nd4 {[%clk 0:00:54]}  Rb8 {[%clk 0:00:20]} 26. b4 {[%clk 0:00:54]}  Ne6 {[%clk 0:00:17]} 27. Nd5 {[%clk 0:00:27]}  Bxd5 {[%clk 0:00:14]} 28. exd5 {[%clk 0:00:28]}  Nxd4 {[%clk 0:00:14]} 29. Qxd4+ {[%clk 0:00:28]}  Kg8 {[%clk 0:00:13]} 30. Re4 {[%clk 0:00:26]}  Qc7 {[%clk 0:00:12]} 31. Qe3 {[%clk 0:00:24]}  Rb7 {[%clk 0:00:10]} 32. Kh2 {[%clk 0:00:23]}  f6 {[%clk 0:00:06]} 33. Re6 {[%clk 0:00:22]}  Kf7 {[%clk 0:00:06]} 34. Qh6 {[%clk 0:00:22]}  Kg8 {[%clk 0:00:06]} 35. h4 {[%clk 0:00:23]}  Qd8 {[%clk 0:00:05]} 36. h5 {[%clk 0:00:22]}  Qf8 {[%clk 0:00:06]} 37. Qe3 {[%clk 0:00:21]}  g5 {[%clk 0:00:06]} 38. f4 {[%clk 0:00:22]}  h6 {[%clk 0:00:05]} 39. Qd3 {[%clk 0:00:20]}  Qf7 {[%clk 0:00:05]} 40. Qxa6 {[%clk 0:00:19]}  Qxh5+ {[%clk 0:00:05]} 41. Kg1 {[%clk 0:00:16]}  Rc7 {[%clk 0:00:04]} 42. Qf1 {[%clk 0:00:14]}  gxf4 {[%clk 0:00:03]} 43. b5 {[%clk 0:00:13]}  Qxd5 {[%clk 0:00:03]} 44. Re1 {[%clk 0:00:10]}  Qd4+ {[%clk 0:00:03]} 45. Qf2 {[%clk 0:00:03]}  Qxf2+ {[%clk 0:00:04]} 46. Kxf2 {[%clk 0:00:04]}  Rb7 {[%clk 0:00:04]} 47. Kf3 {[%clk 0:00:03]}  Kf7 {[%clk 0:00:04]} 48. Kxf4 {[%clk 0:00:02]}  Rxb5 {[%clk 0:00:05]} 49. Re2 {[%clk 0:00:03]}  Rb3 {[%clk 0:00:05]} 50. Kg4 {[%clk 0:00:03]}  e5 {[%clk 0:00:05]} 51. Kh5 {[%clk 0:00:03]}  Kg7 {[%clk 0:00:05]} 52. Re4 {[%clk 0:00:01]}  d5 {[%clk 0:00:05]} 53. Rg4+ {[%clk 0:00:02]}  Kf7 {[%clk 0:00:05]} 54. Kxh6 {[%clk 0:00:01]}  Rxb2 {[%clk 0:00:06]} 55. Rg7+ {[%clk 0:00:01]}  Ke6 {[%clk 0:00:06]} 56. Rg8 {[%clk 0:00:02]}  Rf2 {[%clk 0:00:06]} 57. g4 {[%clk 0:00:02]}  d4 {[%clk 0:00:06]} 58. Kg6 {[%clk 0:00:02]}  d3 {[%clk 0:00:06]} 59. Re8+ {[%clk 0:00:02]}  Kd7 {[%clk 0:00:06]} 60. Ra8 {[%clk 0:00:02]}  d2 {[%clk 0:00:07]} 61. Ra1 {[%clk 0:00:02]}  Re2 {[%clk 0:00:07]} 62. Rd1 {[%clk 0:00:03]}  e4 {[%clk 0:00:07]} 63. Kxf6 {[%clk 0:00:03]}  e3 {[%clk 0:00:08]} 64. Ra1 {[%clk 0:00:03]}  Re1 {[%clk 0:00:08]} 65. Ra7+ {[%clk 0:00:03]}  Kc6 {[%clk 0:00:08]} 66. Ra6+ {[%clk 0:00:03]}  Kb5 {[%clk 0:00:09]} 67. Rd6 {[%clk 0:00:01]}  d1=Q {[%clk 0:00:09]} 68. Rxd1 {[%clk 0:00:02]}  Rxd1 {[%clk 0:00:09]} 69. g5 {[%clk 0:00:03]}  Rg1 {[%clk 0:00:10]} 70. g6 {[%clk 0:00:03]}  Rxg6+ {[%clk 0:00:10]} 71. Kxg6 {[%clk 0:00:03]}  e2 {[%clk 0:00:11]} 72. Kf5 {[%clk 0:00:04]}  e1=Q {[%clk 0:00:11]} 73. Kf4 {[%clk 0:00:05]}  Qe2 {[%clk 0:00:11]} 74. Kg3 {[%clk 0:00:05]}  Kc5 {[%clk 0:00:12]} 75. Kh3 {[%clk 0:00:06]}  Kd4 {[%clk 0:00:12]} 76. Kg3 {[%clk 0:00:07]}  Qf1 {[%clk 0:00:12]} 77. Kh2 {[%clk 0:00:06]}  Ke4 {[%clk 0:00:13]} 78. Kg3 {[%clk 0:00:07]}  Qf3+ {[%clk 0:00:13]} 79. Kh2 {[%clk 0:00:08]}  Qg4 {[%clk 0:00:13]} 80. Kh1 {[%clk 0:00:09]}  Kf3 {[%clk 0:00:14]} 81. Kh2 {[%clk 0:00:09]}  Qg2# {[%clk 0:00:14]} 0-1


[Site "https://www.chess.com"]

[Event "Titled Tuesday Blitz November 14 Late 2023"]
[White "szachmistrz2500"]
[Black "Hambleton, Aman"]
[BlackFideId "2606577"]
[WhiteElo "2452"]
[BlackElo "2722"]
[Result "0-1"]
[Round "5"]
[TimeControl "180+1"]
[Date "2023.11.14"]
[WhiteClock "0:00:00"]
[BlackClock "0:00:07"]
[Board "39"]

1. Nf3 {[%clk 0:03:00]}  d5 {[%clk 0:02:59]} 2. g3 {[%clk 0:03:00]}  c6 {[%clk 0:02:58]} 3. Bg2 {[%clk 0:03:00]}  Nf6 {[%clk 0:02:59]} 4. O-O {[%clk 0:03:01]}  Bf5 {[%clk 0:03:00]} 5. d3 {[%clk 0:03:01]}  h6 {[%clk 0:03:00]} 6. Nbd2 {[%clk 0:03:01]}  e6 {[%clk 0:03:00]} 7. Qe1 {[%clk 0:03:02]}  Bh7 {[%clk 0:03:01]} 8. e4 {[%clk 0:03:02]}  Be7 {[%clk 0:03:02]} 9. b3 {[%clk 0:03:01]}  a5 {[%clk 0:03:02]} 10. a4 {[%clk 0:03:00]}  Na6 {[%clk 0:03:02]} 11. Bb2 {[%clk 0:02:59]}  Nb4 {[%clk 0:03:02]} 12. Rc1 {[%clk 0:02:57]}  O-O {[%clk 0:03:02]} 13. Qe2 {[%clk 0:02:57]}  Re8 {[%clk 0:03:00]} 14. Ne5 {[%clk 0:02:57]}  Nd7 {[%clk 0:02:58]} 15. Nxd7 {[%clk 0:02:54]}  Qxd7 {[%clk 0:02:59]} 16. f4 {[%clk 0:02:54]}  Bf8 {[%clk 0:02:57]} 17. e5 {[%clk 0:02:51]}  b5 {[%clk 0:02:42]} 18. axb5 {[%clk 0:02:12]}  cxb5 {[%clk 0:02:43]} 19. Nf3 {[%clk 0:02:03]}  a4 {[%clk 0:02:41]} 20. bxa4 {[%clk 0:01:55]}  bxa4 {[%clk 0:02:42]} 21. Kh1 {[%clk 0:01:55]}  a3 {[%clk 0:02:35]} 22. Ba1 {[%clk 0:01:55]}  Rec8 {[%clk 0:02:26]} 23. Nd4 {[%clk 0:01:48]}  Na2 {[%clk 0:01:05]} 24. Rce1 {[%clk 0:01:43]}  Bb4 {[%clk 0:01:05]} 25. Rb1 {[%clk 0:01:29]}  Nc3 {[%clk 0:01:03]} 26. Qe1 {[%clk 0:00:58]}  Nxb1 {[%clk 0:00:35]} 27. Qxb4 {[%clk 0:00:57]}  a2 {[%clk 0:00:35]} 28. g4 {[%clk 0:00:52]}  Qa4 {[%clk 0:00:17]} 29. Qe7 {[%clk 0:00:47]}  Qa7 {[%clk 0:00:09]} 30. Qh4 {[%clk 0:00:45]}  Nc3 {[%clk 0:00:09]} 31. Nb3 {[%clk 0:00:34]}  Qe3 {[%clk 0:00:04]} 32. f5 {[%clk 0:00:26]}  Qxe5 {[%clk 0:00:02]} 33. f6 {[%clk 0:00:22]}  Qg5 {[%clk 0:00:01]} 34. Qe1 {[%clk 0:00:20]}  d4 {[%clk 0:00:01]} 35. fxg7 {[%clk 0:00:20]}  Qxg7 {[%clk 0:00:01]} 36. Bxa8 {[%clk 0:00:18]}  Rxa8 {[%clk 0:00:02]} 37. Qf2 {[%clk 0:00:16]}  Rd8 {[%clk 0:00:02]} 38. Rg1 {[%clk 0:00:15]}  Bg6 {[%clk 0:00:02]} 39. h4 {[%clk 0:00:15]}  Qe5 {[%clk 0:00:03]} 40. h5 {[%clk 0:00:14]}  Bh7 {[%clk 0:00:03]} 41. Re1 {[%clk 0:00:09]}  Qd5+ {[%clk 0:00:04]} 42. Kh2 {[%clk 0:00:09]}  f5 {[%clk 0:00:03]} 43. gxf5 {[%clk 0:00:07]}  Bxf5 {[%clk 0:00:04]} 44. Rg1+ {[%clk 0:00:08]}  Kf7 {[%clk 0:00:05]} 45. Qg3 {[%clk 0:00:08]}  Qd6 {[%clk 0:00:05]} 46. Nxd4 {[%clk 0:00:07]}  Qxg3+ {[%clk 0:00:05]} 47. Rxg3 {[%clk 0:00:07]}  Rxd4 {[%clk 0:00:05]} 48. Bxc3 {[%clk 0:00:08]}  Rh4+ {[%clk 0:00:01]} 49. Kg2 {[%clk 0:00:06]}  Rg4 {[%clk 0:00:02]} 50. Rxg4 {[%clk 0:00:05]}  Bxg4 {[%clk 0:00:03]} 51. Kg3 {[%clk 0:00:05]}  Bd1 {[%clk 0:00:03]} 52. Kh4 {[%clk 0:00:02]}  Bxc2 {[%clk 0:00:03]} 53. d4 {[%clk 0:00:02]}  Ke7 {[%clk 0:00:03]} 54. Kg4 {[%clk 0:00:02]}  Kd6 {[%clk 0:00:03]} 55. Kf4 {[%clk 0:00:02]}  Kd5 {[%clk 0:00:03]} 56. Bb2 {[%clk 0:00:01]}  Bd1 {[%clk 0:00:03]} 57. Ke3 {[%clk 0:00:01]}  Bxh5 {[%clk 0:00:04]} 58. Kf4 {[%clk 0:00:01]}  Be2 {[%clk 0:00:04]} 59. Kg3 {[%clk 0:00:02]}  h5 {[%clk 0:00:04]} 60. Kh4 {[%clk 0:00:02]}  Bg4 {[%clk 0:00:05]} 61. Kg5 {[%clk 0:00:02]}  Kc4 {[%clk 0:00:06]} 62. d5 {[%clk 0:00:02]}  exd5 {[%clk 0:00:06]} 63. Kf4 {[%clk 0:00:03]}  Kb3 {[%clk 0:00:06]} 64. Be5 {[%clk 0:00:00]}  Kc2 {[%clk 0:00:07]} 0-1


[Site "https://www.chess.com"]

[Event "Titled Tuesday Blitz November 14 Late 2023"]
[White "Goncalves, Davi Sulzbacher"]
[Black "Zeltsan, Joseph"]
[WhiteFideId "2154510"]
[BlackFideId "30932980"]
[WhiteElo "2436"]
[BlackElo "2713"]
[Result "0-1"]
[Round "5"]
[TimeControl "180+1"]
[Date "2023.11.14"]
[WhiteClock "0:00:38"]
[BlackClock "0:00:12"]
[Board "41"]

1. e4 {[%clk 0:03:00]}  c5 {[%clk 0:02:59]} 2. Nf3 {[%clk 0:02:59]}  d6 {[%clk 0:03:00]} 3. c3 {[%clk 0:02:57]}  Nf6 {[%clk 0:03:01]} 4. Bd3 {[%clk 0:02:56]}  Nc6 {[%clk 0:03:00]} 5. O-O {[%clk 0:02:56]}  Bg4 {[%clk 0:03:01]} 6. Bc2 {[%clk 0:02:53]}  e6 {[%clk 0:02:57]} 7. h3 {[%clk 0:02:51]}  Bh5 {[%clk 0:02:57]} 8. Ba4 {[%clk 0:02:43]}  Nxe4 {[%clk 0:02:50]} 9. d4 {[%clk 0:02:43]}  Be7 {[%clk 0:02:43]} 10. d5 {[%clk 0:02:36]}  Bxf3 {[%clk 0:02:17]} 11. gxf3 {[%clk 0:02:33]}  exd5 {[%clk 0:02:12]} 12. fxe4 {[%clk 0:02:33]}  dxe4 {[%clk 0:02:12]} 13. Qd5 {[%clk 0:02:31]}  O-O {[%clk 0:02:10]} 14. Nd2 {[%clk 0:02:14]}  Ne5 {[%clk 0:01:38]} 15. Qxe4 {[%clk 0:01:59]}  Bf6 {[%clk 0:01:22]} 16. Qd5 {[%clk 0:01:35]}  Qc8 {[%clk 0:00:57]} 17. Kg2 {[%clk 0:01:27]}  Ng6 {[%clk 0:00:39]} 18. Nf3 {[%clk 0:00:54]}  a6 {[%clk 0:00:19]} 19. Bg5 {[%clk 0:00:41]}  b5 {[%clk 0:00:14]} 20. Bc2 {[%clk 0:00:40]}  Bxg5 {[%clk 0:00:14]} 21. Qxg5 {[%clk 0:00:40]}  h6 {[%clk 0:00:12]} 22. Qd5 {[%clk 0:00:38]}  Nf4+ {[%clk 0:00:12]} 0-1


[Site "https://www.chess.com"]

[Event "Titled Tuesday Blitz November 14 Late 2023"]
[White "Jimenez Ruano, Adrian"]
[Black "Shuvalova, Polina"]
[WhiteFideId "22276050"]
[BlackFideId "24171760"]
[WhiteElo "2408"]
[BlackElo "2696"]
[Result "1-0"]
[Round "5"]
[TimeControl "180+1"]
[Date "2023.11.14"]
[WhiteClock "0:01:26"]
[BlackClock "0:00:00"]
[Board "43"]

1. d4 {[%clk 0:03:00]}  Nf6 {[%clk 0:02:58]} 2. c4 {[%clk 0:03:01]}  e6 {[%clk 0:02:59]} 3. Nc3 {[%clk 0:03:01]}  d5 {[%clk 0:02:59]} 4. cxd5 {[%clk 0:03:01]}  Nxd5 {[%clk 0:03:00]} 5. e4 {[%clk 0:03:01]}  Nxc3 {[%clk 0:03:01]} 6. bxc3 {[%clk 0:03:02]}  c5 {[%clk 0:03:01]} 7. Nf3 {[%clk 0:03:02]}  cxd4 {[%clk 0:03:02]} 8. cxd4 {[%clk 0:03:03]}  Bb4+ {[%clk 0:03:02]} 9. Bd2 {[%clk 0:03:04]}  Bxd2+ {[%clk 0:03:02]} 10. Qxd2 {[%clk 0:03:05]}  O-O {[%clk 0:03:03]} 11. Bc4 {[%clk 0:03:05]}  Nd7 {[%clk 0:03:03]} 12. O-O {[%clk 0:03:06]}  b6 {[%clk 0:03:03]} 13. d5 {[%clk 0:03:01]}  Nf6 {[%clk 0:03:02]} 14. Rfe1 {[%clk 0:02:27]}  exd5 {[%clk 0:02:56]} 15. exd5 {[%clk 0:02:25]}  Bb7 {[%clk 0:02:56]} 16. Rad1 {[%clk 0:02:19]}  Qd6 {[%clk 0:02:49]} 17. Nd4 {[%clk 0:02:11]}  Qc5 {[%clk 0:02:32]} 18. Nf5 {[%clk 0:01:55]}  h6 {[%clk 0:01:06]} 19. Nxh6+ {[%clk 0:01:51]}  gxh6 {[%clk 0:01:00]} 20. Qxh6 {[%clk 0:01:50]}  Qxc4 {[%clk 0:00:13]} 21. Re3 {[%clk 0:01:29]}  Ng4 {[%clk 0:00:03]} 22. Qg5+ {[%clk 0:01:25]}  Kh7 {[%clk 0:00:00]} 23. Rh3+ {[%clk 0:01:26]} 1-0


[Site "https://www.chess.com"]

[Event "Titled Tuesday Blitz November 14 Late 2023"]
[White "Makarian, Rudik"]
[Black "VitaliyChayka"]
[WhiteFideId "44105681"]
[WhiteElo "2954"]
[BlackElo "2340"]
[Result "1-0"]
[Round "5"]
[TimeControl "180+1"]
[Date "2023.11.14"]
[WhiteClock "0:00:22"]
[BlackClock "0:00:10"]
[Board "45"]

1. d4 {[%clk 0:02:59]}  d6 {[%clk 0:02:58]} 2. Nf3 {[%clk 0:03:00]}  Nd7 {[%clk 0:02:58]} 3. e4 {[%clk 0:02:59]}  e5 {[%clk 0:02:56]} 4. Bc4 {[%clk 0:02:59]}  Be7 {[%clk 0:02:55]} 5. dxe5 {[%clk 0:02:52]}  Nxe5 {[%clk 0:02:51]} 6. Nxe5 {[%clk 0:02:52]}  dxe5 {[%clk 0:02:52]} 7. Qh5 {[%clk 0:02:52]}  g6 {[%clk 0:02:32]} 8. Qxe5 {[%clk 0:02:51]}  Nf6 {[%clk 0:02:32]} 9. Bh6 {[%clk 0:02:50]}  Qd6 {[%clk 0:02:25]} 10. Qxd6 {[%clk 0:02:50]}  cxd6 {[%clk 0:02:24]} 11. f3 {[%clk 0:02:50]}  Be6 {[%clk 0:02:23]} 12. Bb3 {[%clk 0:02:46]}  O-O-O {[%clk 0:02:07]} 13. Nc3 {[%clk 0:02:45]}  d5 {[%clk 0:02:03]} 14. exd5 {[%clk 0:02:31]}  Nxd5 {[%clk 0:02:02]} 15. Nxd5 {[%clk 0:02:31]}  Bxd5 {[%clk 0:02:02]} 16. O-O-O {[%clk 0:02:31]}  Bxb3 {[%clk 0:01:59]} 17. axb3 {[%clk 0:02:32]}  Bf6 {[%clk 0:01:59]} 18. c3 {[%clk 0:02:24]}  Kc7 {[%clk 0:01:57]} 19. Be3 {[%clk 0:02:22]}  a6 {[%clk 0:01:53]} 20. Kc2 {[%clk 0:02:22]}  Kc6 {[%clk 0:01:53]} 21. Rxd8 {[%clk 0:02:14]}  Rxd8 {[%clk 0:01:52]} 22. Rd1 {[%clk 0:02:15]}  Re8 {[%clk 0:01:53]} 23. Kd3 {[%clk 0:02:14]}  h5 {[%clk 0:01:50]} 24. h3 {[%clk 0:02:13]}  Bd8 {[%clk 0:01:48]} 25. Bd4 {[%clk 0:02:11]}  Bc7 {[%clk 0:01:48]} 26. Rd2 {[%clk 0:02:06]}  Re1 {[%clk 0:01:46]} 27. Re2 {[%clk 0:02:05]}  Rd1+ {[%clk 0:01:36]} 28. Kc2 {[%clk 0:02:04]}  Rh1 {[%clk 0:01:34]} 29. b4 {[%clk 0:01:55]}  Kd7 {[%clk 0:01:24]} 30. Kb3 {[%clk 0:01:53]}  Bd6 {[%clk 0:01:18]} 31. Be5 {[%clk 0:01:49]}  Bxe5 {[%clk 0:01:15]} 32. Rxe5 {[%clk 0:01:50]}  Rd1 {[%clk 0:01:10]} 33. Re2 {[%clk 0:01:49]}  f6 {[%clk 0:01:01]} 34. Kc2 {[%clk 0:01:46]}  Rg1 {[%clk 0:01:00]} 35. Kd3 {[%clk 0:01:46]}  Kd6 {[%clk 0:00:57]} 36. Ke4 {[%clk 0:01:45]}  b6 {[%clk 0:00:53]} 37. Kf4 {[%clk 0:01:42]}  a5 {[%clk 0:00:51]} 38. bxa5 {[%clk 0:01:37]}  bxa5 {[%clk 0:00:52]} 39. h4 {[%clk 0:01:27]}  Rb1 {[%clk 0:00:48]} 40. g3 {[%clk 0:01:22]}  Ra1 {[%clk 0:00:45]} 41. g4 {[%clk 0:01:08]}  Rh1 {[%clk 0:00:32]} 42. Kg3 {[%clk 0:01:06]}  Kd5 {[%clk 0:00:29]} 43. Re4 {[%clk 0:00:55]}  Rb1 {[%clk 0:00:27]} 44. Ra4 {[%clk 0:00:54]}  hxg4 {[%clk 0:00:22]} 45. Rxa5+ {[%clk 0:00:53]}  Ke6 {[%clk 0:00:22]} 46. Ra6+ {[%clk 0:00:52]}  Ke5 {[%clk 0:00:20]} 47. Ra5+ {[%clk 0:00:45]}  Ke6 {[%clk 0:00:20]} 48. b4 {[%clk 0:00:44]}  gxf3 {[%clk 0:00:20]} 49. Rc5 {[%clk 0:00:38]}  Rb3 {[%clk 0:00:15]} 50. Kxf3 {[%clk 0:00:37]}  Kd6 {[%clk 0:00:15]} 51. Ke4 {[%clk 0:00:34]}  Rb1 {[%clk 0:00:14]} 52. h5 {[%clk 0:00:32]}  f5+ {[%clk 0:00:12]} 53. Kd3 {[%clk 0:00:26]}  gxh5 {[%clk 0:00:12]} 54. Rxf5 {[%clk 0:00:26]}  h4 {[%clk 0:00:12]} 55. Rh5 {[%clk 0:00:25]}  Rh1 {[%clk 0:00:12]} 56. Kc4 {[%clk 0:00:25]}  Kc6 {[%clk 0:00:09]} 57. Rh6+ {[%clk 0:00:22]}  Kc7 {[%clk 0:00:10]} 1-0


[Site "https://www.chess.com"]